bitfinex/quotes_ETHUSD_20260120
["timestamp","ask_amount","ask_price","bid_price","bid_amount"]
[1768894814926,12.15127146,3127.9,3127.1,15.368589]
[1768894815137,11.62827146,3127.9,3127.1,15.368589]
[1768894815834,11.62827146,3127.9,3127.1,12.89876369]
[1768894816037,11.62827146,3127.9,3126.8,0.525]
[1768894816038,11.62727146,3127.8,3126.8,0.525]
[1768894816652,11.62727146,3127.8,3126.8,3.72313893]
[1768894817006,11.62727146,3127.8,3126.8,16.62190262]
[1768894817136,11.62727146,3127.8,3127.0,12.89876369]
[1768894817454,12.84239861,3127.8,3127.2,0.002]
[1768894818780,0.001,3127.9,3127.2,0.002]
[1768894818781,0.001,3127.9,3127.4,12.89876369]
[1768894818927,12.15107266,3128.4,3127.5,12.89876369]
[1768894819321,11.62727146,3128.3,3127.3,12.89876369]
[1768894819561,11.62727146,3128.3,3127.2,0.527]
[1768894819874,11.62727146,3128.3,3127.3,12.89876369]
[1768894820074,11.62727146,3128.1,3127.3,12.89876369]
[1768894820374,0.523,3128.1,3127.3,12.89876369]
[1768894821749,0.523,3128.1,3127.3,16.09639967]
[1768894823463,0.0008012,3129.0,3127.9,12.28047486]
[1768894823632,0.0008012,3129.0,3128.2,12.28047486]
[1768894823960,11.62806465,3128.8,3127.9,12.28047486]
[1768894824257,11.62806465,3128.6,3128.2,0.00767154]
[1768894824424,12.81422815,3128.5,3128.2,0.00767154]
[1768894825430,12.81422815,3128.5,3128.2,0.00255728]
[1768894826055,12.81422815,3128.5,3128.3,1e-08]
[1768894826539,12.81422815,3128.5,3128.2,0.525]
[1768894826739,12.90948747,3128.4,3127.5,12.28047486]
[1768894827268,12.90948747,3128.4,3127.3,12.28047486]
[1768894827440,12.90948747,3128.4,3127.6,0.525]
[1768894828289,12.90948747,3128.4,3127.6,12.80547486]
[1768894828748,12.90948747,3128.4,3127.6,0.525]
[1768894828947,13.23865805,3128.3,3127.6,0.525]
[1768894829371,13.23865805,3128.3,3127.6,0.527]
[1768894829746,0.001,3128.1,3127.6,0.527]
[1768894830467,0.001,3128.1,3127.6,0.002]
[1768894830666,0.001,3128.1,3127.6,0.527]
[1768894830861,1.3249658,3128.1,3127.6,0.527]
[1768894831966,1.3249658,3128.1,3127.6,12.80747486]
[1768894832179,0.001,3128.1,3127.6,12.80747486]
[1768894834060,11.62906465,3128.1,3127.6,0.527]
[1768894835046,11.62906465,3128.1,3127.3,0.002]
[1768894835348,11.62906465,3128.1,3127.4,0.525]
[1768894835560,12.17058465,3127.9,3127.4,0.525]
[1768894835789,12.17058465,3127.9,3127.3,0.002]
[1768894836076,12.17058465,3127.9,3127.4,0.525]
[1768894837587,12.17058465,3127.9,3127.3,0.527]
[1768894841258,12.17058465,3127.9,3127.3,0.002]
[1768894841594,12.17058465,3127.7,3127.3,0.525]
[1768894842183,12.17058465,3127.7,3127.2,0.002]
[1768894842384,12.17058465,3127.7,3127.1,0.52380758]
[1768894842892,11.87965161,3127.5,3127.3,0.002]
[1768894845672,11.87965161,3127.5,3127.0,13.48840832]
[1768894846063,11.87965161,3127.5,3127.0,12.96340832]
[1768894846391,13.06771677,3127.5,3127.0,13.48840832]
[1768894848707,0.001,3127.6,3127.0,13.48840832]
[1768894849025,11.88065161,3127.6,3127.0,12.96340832]
[1768894851331,0.001,3127.6,3127.0,12.96340832]
[1768894852037,11.88065161,3127.6,3127.0,12.96340832]
[1768894852642,0.001,3127.6,3127.0,12.96340832]
[1768894853214,13.38241981,3127.6,3127.0,12.46062699]
[1768894853402,13.38241981,3127.6,3127.1,0.525]
[1768894853834,13.38241981,3127.6,3127.0,12.46062699]
[1768894854140,13.38241981,3127.6,3127.0,0.525]
[1768894854643,0.001,3127.3,3126.9,0.002]
[1768894854852,0.001,3127.3,3126.9,0.527]
[1768894855152,12.19435465,3127.3,3126.9,0.527]
[1768894855512,0.001,3127.3,3126.9,12.98762699]
[1768894855948,0.001,3127.3,3126.9,12.46262699]
[1768894856254,0.001,3127.3,3126.9,12.98762699]
[1768894857177,12.19435465,3127.3,3126.9,0.002]
[1768894857935,12.19435465,3127.3,3126.9,12.46262699]
[1768894858330,0.001,3127.3,3126.9,12.46262699]
[1768894860637,0.001,3127.3,3127.0,12.46062699]
[1768894860862,0.001,3127.6,3127.0,12.98562699]
[1768894862478,0.001,3127.6,3127.1,12.46062699]
[1768894865000,0.001,3127.6,3127.2,12.46062699]
[1768894866465,0.001,3127.3,3127.2,12.46062699]
[1768894867167,0.001,3127.6,3127.2,12.46062699]
[1768894869583,0.001,3127.6,3127.3,12.46062699]
[1768894870309,0.001,3128.1,3127.5,12.46062699]
[1768894872096,12.19534465,3128.1,3127.6,12.46062699]
[1768894872309,12.19534465,3128.1,3127.4,12.46062699]
[1768894872504,13.41487912,3128.1,3127.5,0.525]
[1768894873013,12.19434465,3128.0,3127.0,12.46062699]
[1768894873188,12.19434465,3128.0,3127.0,12.98562699]
[1768894873718,12.19434465,3128.0,3127.0,16.18356113]
[1768894873878,12.19434465,3127.8,3127.1,12.46062699]
[1768894874725,1.39388791,3127.9,3127.1,12.46062699]
[1768894875012,13.58823256,3127.9,3127.1,12.46062699]
[1768894875717,13.58823256,3127.9,3127.2,0.525]
[1768894875894,13.58823256,3127.9,3127.3,12.46062699]
[1768894876095,13.55316791,3127.8,3127.3,12.46062699]
[1768894877507,13.55316791,3127.8,3127.0,12.46062699]
[1768894877686,13.55316791,3127.8,3127.2,0.525]
[1768894878006,13.55316791,3127.8,3127.2,12.98562699]
[1768894878622,0.001,3127.5,3127.2,12.98562699]
[1768894880896,0.001,3127.5,3127.2,12.46062699]
[1768894881842,13.55982527,3127.5,3126.9,0.002]
[1768894882166,13.55982527,3127.5,3126.9,0.527]
[1768894882320,13.55982527,3127.5,3126.9,0.002]
[1768894884320,13.55982527,3127.5,3126.8,0.0008016]
[1768894885332,13.55982527,3127.5,3126.8,12.32268172]
[1768894885539,12.13143538,3127.3,3126.8,0.0008016]
[1768894885700,12.65543538,3127.3,3126.8,0.0008016]
[1768894886232,12.65543538,3127.3,3126.8,12.32268172]
[1768894887818,0.524,3127.2,3126.8,12.32268172]
[1768894889211,12.65543538,3127.2,3126.8,12.32268172]
[1768894889404,12.65543538,3127.2,3126.4,0.0008016]
[1768894889405,14.05657717,3127.2,3126.4,12.32268172]
[1768894890034,14.05657717,3127.2,3126.5,12.32188012]
[1768894890237,14.05657717,3127.2,3126.5,15.51434301]
[1768894890409,14.05757717,3127.2,3126.6,12.32188012]
[1768894890609,13.5371931,3127.1,3126.8,0.002]
[1768894890936,13.5371931,3127.1,3126.6,12.32188012]
[1768894891336,0.524,3127.0,3126.6,12.32188012]
[1768894892835,0.524,3127.0,3126.4,3.19931146]
[1768894892836,12.65543538,3127.0,3126.4,12.32268172]
[1768894893036,12.13143538,3126.8,3126.4,0.0008016]
[1768894896823,12.13143538,3126.8,3126.1,0.002]
[1768894897271,12.13143538,3126.8,3126.1,12.32388012]
[1768894902582,12.13143538,3126.8,3126.4,0.002]
[1768894902782,12.13143538,3126.8,3126.3,8.27336476]
[1768894903014,0.001,3126.5,3126.3,6.7442668]
[1768894903297,0.524,3126.4,3126.3,6.7442668]
[1768894912803,0.4433227,3126.4,3126.3,6.7442668]
[1768894913309,0.4433227,3126.4,3126.3,6.6902668]
[1768894914489,0.4433227,3126.4,3126.1,12.97571363]
[1768894920628,0.524,3126.5,3126.2,12.97371363]
[1768894920787,12.5468327,3127.2,3126.6,12.97371363]
[1768894921822,13.0698327,3127.1,3126.6,12.97371363]
[1768894922024,12.5458327,3127.1,3126.6,12.97371363]
[1768894922224,0.524,3127.0,3126.6,12.97371363]
[1768894922425,3.19846256,3127.5,3126.9,12.97371363]
[1768894922426,0.001,3127.5,3126.9,12.97371363]
[1768894922736,0.524,3127.4,3127.1,12.97371363]
[1768894922916,0.0008016,3128.0,3127.1,12.97371363]
[1768894923228,0.0008016,3128.0,3127.0,12.97371363]
[1768894923436,0.0008016,3128.0,3126.9,11.79922982]
[1768894923437,0.0008016,3128.0,3127.2,12.97371363]
[1768894923732,0.524,3127.9,3127.3,12.97371363]
[1768894924084,0.524,3127.8,3127.3,12.97371363]
[1768894924646,0.524,3127.8,3127.3,16.17129767]
[1768894927645,0.0008016,3128.0,3127.4,12.97371363]
[1768894927806,0.524,3127.9,3127.6,12.97371363]
[1768894930048,0.0008016,3128.0,3127.6,12.97371363]
[1768894930238,0.5248016,3128.0,3127.6,12.97371363]
[1768894930948,0.5248016,3128.0,3127.2,3.19770821]
[1768894930949,8.49656148,3128.0,3127.2,12.97371363]
[1768894931139,7.97175988,3127.8,3127.2,12.97371363]
[1768894934853,0.524,3127.7,3127.2,12.97371363]
[1768894935054,8.49575988,3127.7,3127.2,12.97371363]
[1768894936235,8.49575988,3127.7,3126.8,12.97371363]
[1768894937771,8.49575988,3127.7,3126.8,16.17186233]
[1768894937970,7.97175988,3127.7,3126.8,16.17186233]
[1768894938293,0.524,3127.6,3126.8,16.17186233]
[1768894938661,0.524,3127.6,3127.1,12.97571363]
[1768894939361,0.524,3127.5,3127.1,12.97571363]
[1768894939561,0.524,3127.4,3127.1,12.97571363]
[1768894940195,0.524,3127.3,3127.1,12.97571363]
[1768894940894,0.524,3127.3,3126.9,12.97371363]
[1768894941301,0.524,3127.2,3126.9,12.97371363]
[1768894942194,0.0008016,3128.0,3126.9,12.97371363]
[1768894942195,3.19777824,3128.0,3126.9,12.97371363]
[1768894942400,8.8156377,3127.9,3126.9,12.97371363]
[1768894943310,0.524,3127.8,3126.9,12.97371363]
[1768894943479,7.97175988,3127.7,3126.9,12.97371363]
[1768894944166,0.524,3127.6,3126.9,12.97371363]
[1768894944601,0.524,3127.5,3126.9,12.97371363]
[1768894945201,0.524,3127.4,3126.9,12.97371363]
[1768894945400,0.524,3127.4,3126.9,14.59110981]
[1768894945611,7.97175988,3127.6,3126.9,14.59110981]
[1768894945818,0.524,3127.3,3126.9,12.97371363]
[1768894948920,0.524,3127.2,3126.9,12.97371363]
[1768894949121,7.97175988,3127.7,3126.9,12.97371363]
[1768894949330,0.524,3127.6,3126.9,12.97371363]
[1768894949500,7.97175988,3127.7,3126.9,12.97371363]
[1768894949836,0.524,3127.5,3126.9,12.97371363]
[1768894952215,7.97175988,3127.7,3126.9,12.97371363]
[1768894952447,0.524,3127.6,3126.9,12.97371363]
[1768894952648,8.2916377,3127.9,3126.9,16.17173982]
[1768894953266,0.524,3127.8,3127.0,12.45009155]
[1768894953936,8.49575988,3127.8,3127.0,12.45009155]
[1768894954328,8.49575988,3127.8,3127.0,3.19794595]
[1768894954568,8.49575988,3127.8,3127.1,12.45009155]
[1768894954933,7.97256148,3128.0,3127.1,12.45009155]
[1768894955134,0.524,3127.9,3127.1,12.45009155]
[1768894955557,8.49575988,3127.9,3127.1,12.45009155]
[1768894956379,7.97175988,3127.9,3127.1,12.45009155]
[1768894956539,0.524,3127.8,3127.1,12.45009155]
[1768894957249,0.524,3127.7,3127.1,12.45009155]
[1768894959384,0.524,3127.7,3127.1,14.0148933]
[1768894961259,0.524,3127.7,3127.1,12.45009155]
[1768894961455,8.49575988,3127.7,3127.1,12.45009155]
[1768894961949,0.001,3127.6,3127.1,12.45009155]
[1768894962943,0.524,3127.5,3127.1,12.45009155]
[1768894964879,8.49575988,3127.5,3126.9,11.70205857]
[1768894965174,9.34543587,3127.5,3126.9,11.70205857]
[1768894965776,0.524,3127.4,3126.9,11.70205857]
[1768894966278,7.97175988,3127.5,3126.9,11.70205857]
[1768894966465,0.524,3127.4,3126.9,11.70205857]
[1768894966874,0.001,3127.6,3126.9,11.70205857]
[1768894967056,0.524,3127.5,3127.1,11.70205857]
[1768894967874,0.524,3127.4,3127.1,11.70205857]
[1768894971382,0.001,3127.6,3127.1,11.70205857]
[1768894971590,0.524,3127.5,3127.1,11.70205857]
[1768894975462,0.001,3127.6,3127.2,12.25372698]
[1768894975765,0.001,3127.6,3127.4,12.25372698]
[1768894975766,0.524,3127.5,3127.4,12.25372698]
[1768894978087,0.524,3127.5,3127.3,12.25372698]
[1768894979294,0.524,3127.5,3127.4,12.25372698]
[1768894980280,0.0008016,3128.0,3127.5,12.25372698]
[1768894980506,9.01107148,3128.0,3127.5,12.25372698]
[1768894980668,0.524,3127.9,3127.5,12.25372698]
[1768894982303,9.53426988,3127.9,3127.5,12.25372698]
[1768894982501,9.53426988,3127.9,3127.3,12.25372698]
[1768894984998,0.001,3127.6,3127.3,12.25372698]
[1768894985199,0.524,3127.5,3127.4,13.79886988]
[1768894988890,2e-08,3127.5,3127.4,13.79886988]
[1768894989211,0.001,3127.6,3127.5,12.25372698]
[1768894989414,0.525,3127.6,3127.5,12.28039031]
[1768894990379,0.524,3127.6,3127.5,12.28039031]
[1768894991713,0.524,3127.7,3127.6,12.25372698]
[1768894992911,0.0008016,3128.0,3127.6,13.6362803]
[1768894993215,0.5248016,3128.0,3127.6,12.25372698]
[1768894993739,9.53507148,3128.0,3127.5,0.02666333]
[1768894993923,9.53507148,3128.0,3127.5,12.28039031]
[1768894994895,9.53507148,3128.0,3127.5,0.02666333]
[1768894995320,9.01107148,3128.0,3127.5,0.02666333]
[1768894995620,9.01107148,3128.0,3127.5,12.28039031]
[1768894996505,9.01107148,3128.0,3127.5,0.02666333]
[1768894996713,0.001,3127.7,3127.5,0.02666333]
[1768894996887,0.001,3127.7,3127.5,1.25470236]
[1768894998932,0.001,3127.7,3127.5,0.02666333]
[1768895000847,9.16892279,3127.7,3127.1,3.8]
[1768895001342,9.16892279,3127.7,3126.9,12.25372698]
[1768895001646,9.69292279,3127.7,3126.9,12.25372698]
[1768895001846,9.16792279,3127.5,3126.9,12.25372698]
[1768895003231,9.16792279,3127.5,3126.7,11.78538539]
[1768895003721,9.69192279,3127.5,3126.7,11.78538539]
[1768895003912,9.69192279,3127.5,3126.8,11.78738539]
[1768895004626,0.524,3127.5,3126.8,11.78738539]
[1768895004827,0.524,3127.5,3126.8,13.33844935]
[1768895005217,9.69192279,3127.5,3126.8,13.33844935]
[1768895005415,9.69192279,3127.5,3126.8,11.78738539]
[1768895007455,9.69192279,3127.5,3126.8,0.002]
[1768895009253,9.69192279,3127.5,3127.1,0.002]
[1768895009425,9.16792279,3127.3,3127.1,0.002]
[1768895009756,9.16792279,3127.3,3126.8,0.002]
[1768895009944,10.13721507,3127.3,3126.8,0.002]
[1768895010627,9.16892279,3127.4,3126.9,11.78538539]
[1768895011758,9.16892279,3127.4,3126.8,11.78738539]
[1768895012579,9.16892279,3127.4,3126.8,0.002]
[1768895014252,9.16892279,3127.4,3126.8,11.78738539]
[1768895015079,0.001,3127.4,3126.8,11.78738539]
[1768895020884,0.001,3127.4,3126.8,3.20012284]
[1768895021185,0.001,3127.4,3126.9,12.10539767]
[1768895021386,0.001,3127.4,3127.2,11.78538539]
[1768895025095,0.001,3127.4,3127.1,0.002]
[1768895025794,9.16892279,3127.4,3126.8,11.78417253]
[1768895025983,9.16892279,3127.4,3126.8,0.002]
[1768895026590,10.03038033,3127.4,3126.8,0.002]
[1768895027603,10.03038033,3127.4,3126.8,11.78417253]
[1768895028888,10.03038033,3127.4,3126.8,0.002]
[1768895031911,10.55438033,3127.4,3126.8,0.002]
[1768895032220,13.75193393,3127.4,3126.8,0.002]
[1768895032524,10.54311618,3127.3,3126.8,0.002]
[1768895033632,10.54311618,3127.3,3126.6,12.30717253]
[1768895033929,10.54311618,3127.3,3126.2,12.75640309]
[1768895033930,9.16792279,3126.9,3126.2,12.75640309]
[1768895034991,9.16792279,3126.9,3126.3,12.75440707]
[1768895036924,9.69389885,3127.0,3126.3,12.75440707]
[1768895037409,0.001,3127.1,3126.3,14.4024165]
[1768895039156,9.17089885,3127.1,3126.3,14.4024165]
[1768895039322,9.17089885,3127.1,3126.3,12.75440707]
[1768895039676,0.001,3127.1,3126.4,12.75640309]
[1768895039877,0.001,3127.1,3126.6,12.75640309]
[1768895040931,0.001,3127.1,3126.7,12.75640309]
[1768895042118,0.001,3127.4,3126.7,12.75640309]
[1768895042320,0.001,3127.4,3126.9,12.75640309]
[1768895043046,0.001,3127.4,3126.9,13.28140309]
[1768895044878,0.001,3127.4,3127.0,12.75640309]
[1768895045064,0.001,3127.4,3126.9,3.72304342]
[1768895045065,9.17088885,3127.3,3126.9,0.525]
[1768895045382,9.17088885,3127.3,3126.6,12.75640309]
[1768895045383,10.08807774,3127.3,3126.6,12.75640309]
[1768895045575,10.08807774,3127.3,3126.4,13.28140309]
[1768895045778,10.08807774,3127.3,3126.4,12.75640309]
[1768895047170,10.08807774,3127.3,3126.4,12.75041105]
[1768895047573,9.17682097,3127.0,3126.4,12.75041105]
[1768895047746,9.17682097,3127.0,3126.8,0.002]
[1768895048250,0.75878198,3127.0,3126.8,0.002]
[1768895048586,0.001,3127.1,3126.8,12.75840309]
[1768895050762,0.001,3127.4,3126.9,12.75640309]
[1768895051077,0.001,3127.7,3126.9,12.75640309]
[1768895052378,0.001,3127.7,3126.9,15.95445591]
[1768895052685,0.001,3127.7,3127.0,12.75640309]
[1768895052882,0.001,3127.7,3127.2,12.75640309]
[1768895058702,0.001,3127.7,3127.3,13.28140309]
[1768895059087,0.001,3127.4,3127.3,13.28140309]
[1768895075424,9.17782097,3127.7,3127.3,0.525]
[1768895076055,9.17782097,3127.7,3127.2,12.6360854]
[1768895076234,9.17782097,3127.7,3127.4,0.525]
[1768895077627,9.17762257,3128.0,3127.5,12.6360854]
[1768895078335,9.17762257,3128.0,3127.4,0.525]
[1768895078920,9.17762257,3128.0,3127.4,13.1610854]
[1768895080024,9.17762257,3128.0,3127.5,0.525]
[1768895080224,9.66857907,3128.0,3127.5,0.525]
[1768895082062,9.66857907,3128.0,3127.7,0.002]
[1768895083579,0.0008016,3128.0,3127.7,0.002]
[1768895083763,0.0008016,3128.0,3127.7,0.527]
[1768895084168,9.17762257,3128.0,3127.7,0.527]
[1768895087998,9.17762257,3128.0,3127.7,1e-08]
[1768895088292,9.17762257,3128.0,3127.6,0.525]
[1768895088495,10.09538483,3128.0,3127.6,0.525]
[1768895089469,10.09538483,3128.0,3127.5,12.45247583]
[1768895090394,10.09538483,3128.0,3127.6,0.525]
[1768895091201,10.09538483,3128.0,3127.5,12.45247583]
[1768895091866,10.09538483,3128.0,3127.5,11.92747583]
[1768895092067,10.09538483,3128.0,3127.6,0.525]
[1768895094065,10.09538483,3128.0,3127.7,0.002]
[1768895094885,10.09538483,3128.0,3127.5,11.92747583]
[1768895095087,10.18635945,3127.9,3127.6,0.525]
[1768895095260,10.18635945,3127.9,3127.5,0.525]
[1768895096804,10.18635945,3127.9,3127.4,11.79465882]
[1768895097008,10.18635945,3127.9,3127.5,0.525]
[1768895098114,9.17682097,3127.7,3127.4,0.002]
[1768895098330,9.17682097,3127.7,3127.5,0.525]
[1768895098723,9.17682097,3127.7,3127.4,0.002]
[1768895098923,9.17682097,3127.7,3127.5,0.525]
[1768895099226,9.17682097,3127.7,3127.2,0.525]
[1768895099527,0.9176821,3127.7,3127.2,12.31765882]
[1768895099804,9.22830097,3127.9,3127.3,12.31765882]
[1768895100579,9.22830097,3127.9,3127.4,0.525]
[1768895100785,9.22830097,3127.9,3127.3,0.525]
[1768895100970,3.19705598,3127.9,3127.3,0.525]
[1768895101173,9.22830097,3127.8,3127.3,0.525]
[1768895101373,11.01124882,3127.8,3127.3,0.525]
[1768895102710,9.75330096,3127.3,3126.8,11.79465882]
[1768895102926,9.75330096,3127.3,3126.8,12.31965882]
[1768895103515,9.75330096,3127.3,3126.8,11.79465882]
[1768895104102,0.52499999,3127.3,3126.8,12.31965882]
[1768895105895,10.69668658,3127.3,3126.8,11.79465882]
[1768895106095,10.69668658,3127.3,3126.8,12.31965882]
[1768895106501,10.69668658,3127.3,3127.1,0.002]
[1768895106704,10.69668658,3127.3,3126.8,12.31965882]
[1768895106928,10.69668658,3127.3,3126.8,0.002]
[1768895107130,9.22830097,3127.1,3126.2,11.79265882]
[1768895107330,9.22830097,3127.1,3126.3,11.79265882]
[1768895107819,1.06966866,3127.2,3126.3,11.79265882]
[1768895107820,9.22830097,3126.9,3126.3,11.79265882]
[1768895108690,9.22830097,3126.9,3126.3,12.31765882]
[1768895109514,9.22830097,3126.9,3126.3,11.79265882]
[1768895109720,11.01160385,3126.8,3126.3,12.31765882]
[1768895110093,9.22830097,3126.6,3126.1,11.79465882]
[1768895110530,9.22830097,3126.6,3126.1,0.527]
[1768895110913,9.22830097,3126.6,3126.1,0.002]
[1768895111891,9.22830097,3126.5,3125.8,11.79346042]
[1768895112096,1.5625185,3126.4,3125.8,11.79346042]
[1768895112292,9.22830097,3126.3,3125.8,11.79346042]
[1768895112935,9.22830097,3126.3,3125.8,12.31846042]
[1768895114561,9.22830097,3126.3,3125.8,0.0008016]
[1768895115623,9.22830097,3126.2,3125.8,0.0008016]
[1768895115824,9.22830097,3126.2,3125.6,0.5278016]
[1768895116056,9.22830097,3126.0,3125.6,0.5278016]
[1768895116382,10.47100098,3126.1,3125.6,12.32046042]
[1768895116586,9.22830097,3126.5,3125.6,11.79546042]
[1768895116861,1.78330288,3126.8,3125.9,11.79265882]
[1768895117034,9.22830097,3127.0,3126.1,11.79265882]
[1768895117767,0.0008016,3127.4,3126.4,11.79265882]
[1768895118058,0.0008016,3127.4,3126.6,11.79265882]
[1768895118659,0.001,3127.0,3126.6,11.79265882]
[1768895121552,9.77380097,3127.0,3126.1,0.002]
[1768895121759,9.77380097,3127.0,3126.2,12.31765882]
[1768895121760,9.77280097,3126.8,3126.2,12.31765882]
[1768895122155,0.9773801,3126.9,3126.2,12.31765882]
[1768895122875,9.77380097,3127.0,3126.2,12.31765882]
[1768895123951,9.77380097,3127.0,3126.3,0.525]
[1768895124257,9.77380097,3127.0,3126.3,12.7618146]
[1768895125171,9.77380097,3127.0,3126.3,12.2368146]
[1768895125398,9.77280097,3126.6,3126.1,12.2388146]
[1768895125573,9.77280097,3126.6,3126.1,0.527]
[1768895125759,11.29075772,3126.6,3126.1,0.527]
[1768895126644,11.29075772,3126.6,3126.1,12.7638146]
[1768895127783,11.29075772,3126.6,3126.1,12.2388146]
[1768895128074,11.29075772,3126.6,3126.1,0.002]
[1768895128469,11.29075772,3126.6,3125.9,12.2368146]
[1768895128779,11.29075772,3126.6,3125.8,0.002]
[1768895128780,9.77280097,3126.4,3125.8,0.002]
[1768895128944,9.77280097,3126.4,3125.8,12.2388146]
[1768895129759,11.4425534,3126.5,3125.8,12.2388146]
[1768895129962,1.66975243,3126.5,3125.8,12.2388146]
[1768895130681,10.29780097,3127.0,3125.9,12.2368146]
[1768895131054,10.29780097,3127.0,3126.2,12.2368146]
[1768895131381,0.525,3127.0,3126.2,12.2368146]
[1768895131545,10.29780097,3127.0,3126.2,12.2368146]
[1768895140585,10.19780097,3127.0,3126.2,12.2368146]
[1768895140887,10.19780097,3127.0,3126.1,0.527]
[1768895140888,10.29760257,3127.4,3126.4,12.2368146]
[1768895142757,0.0008016,3127.4,3126.6,12.54589502]
[1768895144159,0.001,3127.7,3126.6,12.54589502]
[1768895144664,0.001,3127.7,3126.8,12.54589502]
[1768895144883,0.001,3127.7,3127.0,12.54589502]
[1768895151208,9.77459456,3127.7,3127.0,12.54589502]
[1768895151502,9.77459456,3127.7,3127.0,0.525]
[1768895151670,9.77459456,3127.7,3126.8,13.07089502]
[1768895154312,9.77459456,3127.7,3126.9,12.82054462]
[1768895154610,9.77359456,3127.5,3126.9,12.82054462]
[1768895155108,9.77359456,3127.5,3127.1,0.002]
[1768895155318,9.77459456,3127.4,3127.1,0.002]
[1768895158182,0.001,3127.4,3127.1,12.29754462]
[1768895161818,9.77359456,3127.3,3127.1,0.002]
[1768895162023,10.75105402,3127.3,3126.8,12.82254462]
[1768895162189,10.75105402,3127.3,3126.8,0.002]
[1768895163690,12.9714803,3127.1,3126.2,12.29554462]
[1768895163922,9.77359456,3127.0,3126.2,12.82054462]
[1768895164129,9.77359456,3126.8,3126.2,12.82054462]
[1768895164489,1.29714803,3126.9,3126.2,12.82054462]
[1768895164701,9.77359456,3127.0,3126.2,12.82054462]
[1768895165878,1.50145946,3127.3,3126.3,12.29554462]
[1768895166082,0.524,3127.3,3126.3,12.29554462]
[1768895166283,0.001,3127.4,3126.3,12.29554462]
[1768895167315,0.001,3127.4,3127.2,11.78154462]
[1768895168007,0.001,3127.4,3127.1,12.29754462]
[1768895169924,10.28345456,3127.4,3127.1,0.002]
[1768895170090,0.60069223,3127.3,3127.1,0.002]
[1768895170919,10.88314679,3127.3,3126.9,12.29554462]
[1768895171117,10.88314679,3127.3,3126.8,0.527]
[1768895171316,10.28245456,3127.1,3126.4,16.09554462]
[1768895171518,10.28245456,3126.5,3125.8,12.29834662]
[1768895171715,5.40509144,3126.6,3125.8,12.29834662]
[1768895171716,1.5687546,3126.4,3125.8,12.29834662]
[1768895172029,10.28245456,3126.7,3125.8,12.29834662]
[1768895172220,0.524,3126.8,3125.9,12.29554462]
[1768895172398,10.28245456,3127.2,3125.9,12.29554462]
[1768895172596,10.88314679,3127.3,3126.1,12.29554462]
[1768895172899,10.88314679,3127.3,3126.3,12.29554462]
[1768895174326,10.28245456,3127.2,3126.4,0.525]
[1768895174532,10.28245456,3127.2,3126.5,12.29554462]
[1768895175602,10.28245456,3127.2,3126.5,12.82154462]
[1768895179235,10.28245456,3127.2,3126.6,0.002]
[1768895179533,11.6905352,3127.1,3126.6,12.29754462]
[1768895180308,11.6905352,3127.1,3126.6,0.002]
[1768895180916,10.28245456,3127.0,3126.6,0.002]
[1768895181233,1.40808064,3127.1,3126.6,12.29754462]
[1768895181439,10.28245456,3127.2,3126.6,12.29754462]
[1768895183047,10.88314679,3127.3,3126.6,12.29754462]
[1768895183613,10.28245456,3127.2,3126.6,12.29754462]
[1768895185616,10.28245456,3127.1,3126.6,12.29754462]
[1768895186457,10.28245456,3127.0,3126.4,12.92051934]
[1768895186629,10.28245456,3126.8,3126.3,12.39651934]
[1768895190642,10.28245456,3127.2,3126.3,12.39651934]
[1768895190841,10.28245456,3127.1,3126.3,12.39651934]
[1768895192551,0.001,3126.9,3126.3,12.39651934]
[1768895197743,0.001,3126.9,3126.5,12.39451934]
[1768895199876,10.28345456,3126.9,3126.5,0.34102985]
[1768895200967,11.31180002,3126.9,3126.3,0.002]
[1768895201581,11.31180002,3126.9,3126.3,12.39651934]
[1768895201786,10.28345456,3126.9,3126.3,12.39651934]
[1768895202571,0.001,3126.9,3126.3,12.39651934]
[1768895204283,0.001,3126.9,3126.6,0.002]
[1768895206388,10.28939456,3126.9,3126.6,0.002]
[1768895209803,0.001,3126.9,3126.6,0.002]
[1768895209998,0.001,3126.9,3126.6,12.41727409]
[1768895210305,0.525,3127.2,3126.7,12.41527409]
[1768895211808,0.001,3127.4,3126.7,12.41527409]
[1768895212180,10.28939456,3127.4,3126.7,12.41527409]
[1768895212380,1.40118469,3127.3,3126.7,12.41527409]
[1768895212614,11.68957925,3127.3,3126.7,12.41527409]
[1768895216496,0.001,3127.1,3126.7,12.41527409]
[1768895220523,0.001,3127.4,3126.7,12.69101119]
[1768895221099,0.001,3127.4,3126.7,14.01291231]
[1768895222025,0.001,3127.4,3126.8,12.69101119]
[1768895222232,0.001,3127.4,3127.0,12.69101119]
[1768895229238,0.001,3127.1,3127.0,12.69101119]
[1768895233207,0.001,3127.1,3126.9,13.21701119]
[1768895234045,0.001,3127.1,3126.9,16.415021]
[1768895234242,0.001,3127.7,3127.2,12.69101119]
[1768895235906,0.001,3127.7,3127.4,12.69101119]
[1768895238754,10.29137456,3127.7,3127.3,0.526]
[1768895238904,11.32051202,3127.7,3127.3,0.526]
[1768895240156,11.32051202,3127.7,3127.2,13.21701119]
[1768895240731,1.03013746,3127.7,3127.2,13.21701119]
[1768895240918,0.001,3127.4,3127.2,13.21701119]
[1768895245846,0.001,3127.4,3127.2,12.69101119]
[1768895246045,0.001,3127.4,3127.3,0.526]
[1768895246246,0.001,3127.4,3127.3,12.27640697]
[1768895246916,0.001,3127.4,3127.3,11.75040697]
[1768895247116,0.001,3127.4,3127.3,12.27640697]
[1768895247657,0.001,3127.4,3127.3,11.75040697]
[1768895247953,0.001,3127.4,3127.3,12.27640697]
[1768895249764,0.001,3127.4,3127.3,12.22240697]
[1768895250113,0.001,3127.4,3127.3,0.526]
[1768895250558,0.001,3127.4,3127.3,12.27640697]
[1768895256142,0.001,3127.4,3127.3,11.75040697]
[1768895256455,0.001,3127.4,3127.3,12.27640697]
[1768895257273,0.001,3127.7,3127.4,11.75040697]
[1768895263980,0.001,3127.7,3127.4,12.27640697]
[1768895266185,0.001,3127.7,3127.4,11.75040697]
[1768895266378,0.001,3127.7,3127.4,12.27640697]
[1768895267583,0.001,3127.7,3127.4,11.75040697]